Cogmind - Beta 15 @@@ ROGUE MODE // 2025.05.18 @ 12:03:17 Player: McSaucyNugget Result: Self-destructed Performance ------------- Evolutions (4) 2000 Regions Visited (5) 1000 Robots Destroyed (72) 360 Value Destroyed (2343) 2343 Prototype IDs (13) 260 Alien Tech Used (0) 0 Bonus (0) 0 TOTAL SCORE: 5963 Bonus ------- None Cogmind --------- Core Integrity 767/850 Matter 46/300 Energy 160/160 System Corruption 4% Temperature Cool (0) Movement Treading (165) Location -6/Factory Parts ------- > --- POWER (1) -------- Light Nuclear Core > --- PROPULSION (6) --- Armored Treads Armored Treads Armored Treads Medium Treads Medium Treads > --- UTILITY (6) ------ High-capacity Storage Unit Machine Analyzer Improved Signal Interpreter Improved Medium Armor Plating Hacking Suite System Shield > --- WEAPON (2) ------- Gauss Cannon > --- INVENTORY (20) --- Micro Nuclear Core Medium Treads Cesium-ion Thruster Cesium-ion Thruster Cooling System Transmission Jammer Improved Propulsion Shielding Improved Medium Armor Plating Improved Medium Armor Plating System Shield Lightning Gun Pulse Rifle Heavy Laser Gatling Laser Heavy Plasma Cannon Mini Grenade Launcher Flail Peak State ------------ > --- POWER ------------ Micro Nuclear Core > --- PROPULSION ------- Improved Carbon-fiber Leg Improved Titanium Leg Cargo Legs Cooled Airjet > --- UTILITY ---------- Heat Sink High-capacity Storage Unit Machine Analyzer Improved Sensor Array Improved Signal Interpreter Hardened Medium Armor Plating Hacking Suite > --- WEAPON ----------- Subdweller Beam Cannon Autogun > --- INVENTORY -------- Light Nuclear Core Armored Treads Armored Treads Armored Treads Armored Treads Medium Treads Cesium-ion Thruster Cesium-ion Thruster Improved Heat Sink Cooling System Actuator Array Transmission Jammer Improved Propulsion Shielding Hardened Heavy Armor Plating System Shield Pulse Rifle Gatling Laser Minigun Flail [Rating: 60] Favorites ----------- Power Micro Nuclear Core Engine Ion Engine Power Core Micro Nuclear Core Propulsion Armored Treads Treads Armored Treads Leg Carbon-fiber Leg Wheel Wheel Hover Unit Cooled Airjet Flight Unit Improved Cesium-ion Thruster Utility Machine Analyzer Device Heat Sink Storage High-capacity Storage Unit Processor Machine Analyzer Hackware Hacking Suite Protection Hardened Medium Armor Plating Weapon Beam Rifle Energy Gun Beam Rifle Energy Cannon Subdweller Beam Cannon Ballistic Gun Minigun Ballistic Cannon Gauss Cannon Launcher Mini Grenade Launcher Special Weapon Mining Laser Impact Weapon Flail Build | -11 -10 -10 -8 -7 -6 ------- Run | Yrd Mat Sub Mat Fac Fac Slots Evolved 8 | . . . 4 2 2 Power . | . . . . . . Propulsion 4 | . . . 2 1 1 Utility 4 | . . . 2 1 1 Weapon . | . . . . . . Parts Attached 62 | 6 4 9 10 31 2 Power 9 | 1 . 2 2 4 . Engine 6 | 1 . 2 2 1 . Core 3 | . . . . 3 . Reactor . | . . . . . . Propulsion 20 | 2 . 4 2 12 . Treads 8 | 2 . . . 6 . Leg 9 | . . 3 2 4 . Wheel 1 | . . 1 . . . Hover 1 | . . . . 1 . Flight 1 | . . . . 1 . Utility 18 | 1 2 . 3 11 1 Device 6 | . 1 . . 5 . Storage 3 | 1 1 . 1 . . Processor 2 | . . . 1 1 . Hackware 3 | . . . . 2 1 Protection 4 | . . . 1 3 . Artifact . | . . . . . . Weapon 15 | 2 2 3 3 4 1 Energy Gun 6 | 1 2 2 1 . . Energy Cannon 2 | . . . 2 . . Ballistic Gun 3 | 1 . . . 2 . Ballistic Cannon 1 | . . . . 1 . Launcher 1 | . . . . . 1 Special Weapon 1 | . . 1 . . . Impact Weapon 1 | . . . . 1 . Slashing Weapon . | . . . . . . Piercing Weapon . | . . . . . . Special Melee Weapon . | . . . . . . Unidentified Prototypes 2 | . . . . 2 . Parts Lost 15 | . . 5 . 7 3 Power 2 | . . 1 . . 1 Propulsion 5 | . . 3 . 1 1 Utility 4 | . . . . 4 . Weapon 4 | . . 1 . 2 1 Highest Loss Streak 4 | . . 4 . 3 2 To Critical Strikes . | . . . . . . Average Backups 15 | 2 7 12 16 17 17 Power 1 | . . . 1 1 1 Propulsion 4 | 1 2 1 5 6 3 Utility 4 | . . 1 3 5 6 Weapon 5 | . 5 7 6 4 6 Tool/Special . | . . . . . . Unused Backups 37 | . 1 1 12 10 13 Power 2 | . . 1 . . 1 Propulsion 11 | . . . 2 6 3 Utility 11 | . . . 2 4 5 Weapon 13 | . 1 . 8 . 4 Tool/Special . | . . . . . . Average Slot Usage (%) 88 | . 87 89 70 93 94 Engine 5 | . 14 13 7 1 . Core 3 | . . . . 5 6 Treads 15 | . 28 1 . 16 36 Leg 12 | . . 19 19 13 . Device 8 | . 2 13 7 11 . Storage 8 | . 14 13 7 6 6 Processor 7 | . . . 6 11 13 Hackware 3 | . . . . 3 11 Protection 3 | . . . 4 5 6 Energy Gun 8 | . 25 24 3 . . Energy Cannon 2 | . . . 10 3 . Ballistic Gun 4 | . 2 . . 7 5 Ballistic Cannon 1 | . . . . 1 4 Peak Build Rating 60 | 6 10 26 42 60 55 Average Rating 37 | 4 8 14 37 50 51 On Entrance 21 | . 6 10 26 42 47 Naked Turns . | . . . . . . Heaviest Build 75 | 13 36 33 70 75 63 Greatest Support 144 | 40 40 55 85 124 144 Greatest Overweight (x) 9 | . . 9 . 1 . Average Overweight (x) . | . . . . . . Largest Inventory Capacity 20 | 8 15 15 20 20 20 Average Capacity 17 | 6 12 15 18 20 20 Most Carried 20 | 3 12 15 20 20 19 Average Carried 15 | 2 7 12 16 18 17 Final Capacity 20 | 8 15 15 20 20 20 Final Carried 20 | 3 12 15 20 18 17 Class Distribution -------------------- 43% | Mutant 21% | Scavenger-Mutant 14% | Skirmisher 13% | Hacker-Mutant 6% | Scavenger-Skirmisher Dominant Class ---------------- Mutant | -10/Materials Mutant | -10/Subcaves Scavenger-Mutant | -8/Materials Skirmisher | -7/Factory Hacker-Mutant | -6/Factory Resources | -11 -10 -10 -8 -7 -6 ----------- Run | Yrd Mat Sub Mat Fac Fac Matter Collected 1490 | 232 68 114 130 757 189 Remotely . | . . . . . . Salvage Created 2581 | . 262 284 473 1305 257 Parts 145 | . 13 13 33 66 20 Haulers Intercepted 2 | . . . . 2 . Recyclers Shooed 1 | . 1 . . . . Parts Field Recycled . | . . . . . . Retrieved Matter . | . . . . . . Parts Self-Destructed 9 | . . 9 . . . Prevented . | . . . . . . Kills | -11 -10 -10 -8 -7 -6 ------- Run | Yrd Mat Sub Mat Fac Fac Combat Hostiles Destroyed 54 | . 4 9 13 19 9 Melee 1 | . . . . . 1 Guns 27 | . 4 9 3 10 1 Cannons 18 | . . . 10 7 1 AOE 7 | . . . . 1 6 Classes Destroyed 12 | . 3 3 2 3 1 Worker 3 | . 1 . 1 . 1 Builder 6 | . . . 1 2 3 Tunneler 1 | . . . . . 1 Hauler 2 | . . . . 2 . Recycler 4 | . 1 . . 3 . Operator 2 | . . . 1 1 . Swarmer 14 | . . 3 7 . 4 Grunt 19 | . 4 2 2 11 . Sentry 8 | . . 1 4 3 . Hunter 5 | . . . . 1 4 Programmer 5 | . . . . 4 1 Subdweller 3 | . . 3 . . . Best Kill Streak 6 | . 3 3 4 4 6 Combat Bots Only 4 | . 2 3 4 4 4 Max Kills in Single Turn 3 | . 1 2 2 2 3 Gunslinging 1 | . . 1 . 1 . Exploded 3 | . . . . 1 3 Melee 1 | . . . . . 1 Uniques/NPCs Destroyed . | . . . . . . Combat | -11 -10 -10 -8 -7 -6 -------- Run | Yrd Mat Sub Mat Fac Fac Hostile Shots Fired 449 | . 17 59 59 207 107 Missed 144 | . 7 15 19 76 27 Hits 305 | . 10 44 40 131 80 Projectile 305 | . 10 44 40 131 80 Critical Strikes 6 | . . 1 . 5 . Part Disruptions 1 | . . . . . 1 Damage Taken 4332 | . 159 757 384 1861 1171 Core 468 | . 26 145 65 149 83 Absorbed by Shields . | . . . . . . Core Remaining (%) 74 | 100 . 31 88 78 . Volleys Fired 214 | . 18 39 38 92 27 Largest 2 | . 2 2 2 2 2 Hottest 155 | . 112 116 155 155 65 Shots Fired 403 | . 36 71 74 175 47 Gun 239 | . 36 64 17 102 20 Cannon 150 | . . . 57 73 20 Launcher 7 | . . . . . 7 Special 7 | . . 7 . . . Kinetic 150 | . . . . 110 40 Thermal 246 | . 36 71 74 65 . Explosive 7 | . . . . . 7 Electromagnetic . | . . . . . . Robot Hit Streak 21 | . 3 9 11 21 14 Robot Miss Streak 6 | . 3 2 6 4 2 Penetration Max 1 | . . . . . 1 Secondary Targets 3 | . . 2 . 1 . Max Gunslinging Chain 1 | . . 1 . 1 . Shots Hit Robots 242 | . 20 48 39 112 23 Core Hits 115 | . 10 12 17 51 25 Critical Kills . | . . . . . . Critical Parts Destroyed 1 | . . . . 1 . Critical Strikes 8 | . 2 1 1 2 2 Burn 4 | . 2 1 1 . . Blast 3 | . . . . 1 2 Smash 1 | . . . . 1 . Melee Attacks 10 | . . . . 10 . Impact 10 | . . . . 10 . Slashing . | . . . . . . Piercing . | . . . . . . Sneak Attacks . | . . . . . . Combat Hostiles . | . . . . . . Follow-up Attacks . | . . . . . . Damage Inflicted 5819 | . 318 530 947 2667 1357 Guns 2249 | . 318 530 184 1023 194 Cannons 2432 | . . . 752 1391 289 Explosions 956 | . . . . 118 838 Melee 135 | . . . . 135 . Ramming 47 | . . . 11 . 36 Kinetic 1742 | . . . . 1259 483 Thermal 2939 | . 318 530 936 1155 . Explosive 838 | . . . . . 838 Electromagnetic 118 | . . . . 118 . Impact 135 | . . . . 135 . Slashing . | . . . . . . Piercing . | . . . . . . Highest Corruption 4 | . 1 1 . 1 4 Average Corruption 1 | . 1 1 . 1 3 Corruption Purged . | . . . . . . Corruption Blocked . | . . . . . . Effects 24 | . . 8 . 6 10 Message Errors 4 | . . 1 . . 3 Matter Fused 11 | . . 5 . 3 3 Heat Flow Errors 1 | . . . . . 1 Energy Discharges 2 | . . 2 . . . Data Loss (minor) 4 | . . . . 2 2 Data Loss (major) 1 | . . . . 1 . Weapon Failures 1 | . . . . . 1 Overload Shots . | . . . . . . Overflow Damage 114 | . . . 56 54 4 Projectiles 64 | . . . 56 8 . Explosions 4 | . . . . . 4 Melee 46 | . . . . 46 . Knockbacks 7 | . . . . 4 3 Impact . | . . . . . . Kinetic 7 | . . . . 4 3 Secondary . | . . . . . . Self-Inflicted Damage 13 | . . . . 13 . Shots 1 | . . . . 1 . Rammed 3 | . . . . . 3 Targets Rammed 5 | . . . 1 . 4 Kicked 1 | . . . 1 . . Crushed 1 | . . . . . 1 Highest Temperature 416 | . 381 . 416 392 191 Average Temperature 117 | . 168 . 100 135 24 Received Heat Transfer 1125 | . 72 93 54 882 24 Effects 7 | . . . 2 5 . Shutdowns 1 | . . . . 1 . Energy Bleed 2 | . . . . 2 . Interference 4 | . . . 2 2 . Siege Activations . | . . . . . . Martial Activations . | . . . . . . Shielding Activations . | . . . . . . Robots Disrupted . | . . . . . . Combat Hostiles . | . . . . . . Robots Corrupted 1 | . . . . 1 . Combat Hostiles 1 | . . . . 1 . Parts Fried . | . . . . . . Impact Corruptions 3 | . . . . 2 1 Robots Melted . | . . . . . . Combat Hostiles . | . . . . . . Parts Melted 9 | . 1 2 4 2 . Heat Transferred 5319 | . 962 1187 1542 1628 . Parts Sabotaged . | . . . . . . Parts Stolen . | . . . . . . Parts Stripped . | . . . . . . Power Chain Reactions . | . . . . . . Alert | -11 -10 -10 -8 -7 -6 ------- Run | Yrd Mat Sub Mat Fac Fac Maximum Alert Level 1 | . . . . . 1 Low Security (%) 99 | 100 100 . 100 100 97 Level 1 . | . . . . . 2 Level 2 . | . . . . . . Level 3 . | . . . . . . Level 4 . | . . . . . . Level 5 . | . . . . . . High Security . | . . . . . . Max Security . | . . . . . . Peak Influence 202 | . 80 . 131 192 202 Initial 70 | . . . . 8 70 Average 64 | . 13 . 40 78 87 Influence Increases 1568 | . 105 140 381 659 283 Destroy 0b10 Robot/C 1020 | . 80 120 260 380 180 Destroy 0b10 Robot/NC 90 | . 10 . 15 40 25 Destroy Leader 244 | . 10 20 60 124 30 Successful Hack 54 | . 5 . 21 14 14 Disable Machine 90 | . . . . 90 . Destroy Structure 70 | . . . 25 11 34 Influence Decreases 1568 | . 57 186 364 534 427 Entered New Map 111 | . . 24 2 11 74 Time Decay 1269 | . 57 158 239 473 342 Lost Part 65 | . . 4 . 50 11 Purge Threat 123 | . . . 123 . . Squads Dispatched 14 | . . . . 9 5 Investigation 3 | . . . . 3 . Extermination 6 | . . . . 4 2 Reinforcement 4 | . . . . 1 3 Assault . | . . . . . . Garrison 1 | . . . . 1 . Intercept . | . . . . . . Searches Triggered . | . . . . . . Construction Impeded 2 | . . . . . 2 Haulers Reinforced . | . . . . . . Active Scanning Responses . | . . . . . . Cargo Convoy Interrupts . | . . . . . . Stealth | -11 -10 -10 -8 -7 -6 --------- Run | Yrd Mat Sub Mat Fac Fac Distress Signals 1 | . . . 1 . . Communications Jammed . | . . . . . . Distress Signals . | . . . . . . Times Spotted 72 | . 5 9 17 31 10 Peak Tracking Total 6 | . 2 3 5 6 4 Tactical Retreats . | . . . . . . Traps | -11 -10 -10 -8 -7 -6 ------- Run | Yrd Mat Sub Mat Fac Fac Traps Triggered 2 | . 2 . . . . Indirectly . | . . . . . . Trap Hack Attempts . | . . . . . . Triggered . | . . . . . . Disarmed . | . . . . . . Reprogrammed . | . . . . . . Reused . | . . . . . . Traps Extracted . | . . . . . . Installed . | . . . . . . Triggered . | . . . . . . Machines | -11 -10 -10 -8 -7 -6 ---------- Run | Yrd Mat Sub Mat Fac Fac Machines Disabled 7 | . . 1 . 6 . Max in Single Turn 3 | . . 1 . 3 . Garrison Access 3 | . . . 1 2 . Machines Repaired . | . . . . . . Machines Dismantled . | . . . . . . Machines Sabotaged . | . . . . . . Overloaded Fab Kills . | . . . . . . Hacking | -11 -10 -10 -8 -7 -6 --------- Run | Yrd Mat Sub Mat Fac Fac Machines Accessed 20 | . 1 1 6 9 3 Terminals 13 | . 1 . 5 4 3 Fabricators . | . . . . . . Repair Stations . | . . . . . . Recycling Units 1 | . . . . 1 . Scanalyzers 1 | . . . . 1 . Garrison Access 4 | . . . 1 3 . Total Hacks 46 | . 1 9 13 18 5 Successful 23 | . 1 9 5 6 2 Failed 23 | . . . 8 12 3 Catastrophic 8 | . . . 2 4 2 Database Lockouts . | . . . . . . Manual 10 | . . . 4 2 4 Terminals 25 | . 1 . 11 8 5 Fabricators . | . . . . . . Repair Stations . | . . . . . . Recycling Units 2 | . . . . 2 . Scanalyzers 3 | . . . . 3 . Garrison Access 7 | . . . 2 5 . Terminal Hacks 18 | . 1 9 4 2 2 Record 8 | . . 8 . . . Branch Access Points 2 | . . . 1 . 1 Alert Level 2 | . . . 1 1 . Unreport Threat 1 | . . . 1 . . Recall Reinforcements 1 | . . . . . 1 Hauler Manifests 2 | . . . 1 1 . Zone Layout 1 | . 1 . . . . Proto ID Catalog 1 | . . 1 . . . Fabricator Hacks . | . . . . . . Repair Station Hacks . | . . . . . . Recycling Unit Hacks 1 | . . . . 1 . Retrieve Components 1 | . . . . 1 . Scanalyzer 1 | . . . . 1 . Insert Component 1 | . . . . 1 . Garrison Access Hacks 3 | . . . 1 2 . Seal Access 3 | . . . 1 2 . Unauthorized Hacks . | . . . . . . Terminals . | . . . . . . Fabricators . | . . . . . . Repair Stations . | . . . . . . Recycling Units . | . . . . . . Scanalyzers . | . . . . . . Garrison Access . | . . . . . . Data Cores Recovered 1 | . . . 1 . . Used . | . . . . . . Hacking Detections 16 | . 1 . 6 6 3 Full Trace Events 3 | . . . . 3 . Feedback Events . | . . . . . . Feedback Blocked . | . . . . . . Robot Schematics Acquired . | . . . . . . Robots Built . | . . . . . . Authchips . | . . . . . . Time . | . . . . . . Total Robot Build Rating . | . . . . . . Part Schematics Acquired . | . . . . . . Parts Built . | . . . . . . Authchips . | . . . . . . Time . | . . . . . . Total Part Build Rating . | . . . . . . Parts Repaired . | . . . . . . Time . | . . . . . . Parts Recycled . | . . . . . . Recycled Matter . | . . . . . . Retrieved Matter . | . . . . . . Retrieved Components 10 | . . . . 10 . Parts Scanalyzed 1 | . . . . 1 . Part Schematics Acquired . | . . . . . . Parts Damaged 1 | . . . . 1 . Bothacking | -11 -10 -10 -8 -7 -6 ------------ Run | Yrd Mat Sub Mat Fac Fac Used RIF Installer . | . . . . . . Robots Hacked . | . . . . . . Non-combat . | . . . . . . Combat . | . . . . . . Robot Hacks Applied . | . . . . . . Relay Couplers Released . | . . . . . . Fabnet Peak Effective % . | . . . . . . Robots Rewired . | . . . . . . Allies Hacked . | . . . . . . Hacks Repelled . | . . . . . . Allies | -11 -10 -10 -8 -7 -6 -------- Run | Yrd Mat Sub Mat Fac Fac Total Allies . | . . . . . . Largest Group . | . . . . . . Highest-Rated Group . | . . . . . . Highest-Rated Ally . | . . . . . . Total Orders . | . . . . . . Ally Attacks . | . . . . . . Total Damage . | . . . . . . Kills . | . . . . . . Allies Corrupted . | . . . . . . Allies Melted . | . . . . . . Intel | -11 -10 -10 -8 -7 -6 ------- Run | Yrd Mat Sub Mat Fac Fac Active Infowar (turns) 3124 | . . . 757 1514 853 Sensors 1094 | . . . . 1094 . Machine Analysis 3124 | . . . 757 1514 853 Robot Analysis Total . | . . . . . . Derelict Logs Recovered 1 | . . 1 . . . Drone Launches . | . . . . . . Drone Recoveries . | . . . . . . Exploration | -11 -10 -10 -8 -7 -6 ------------- Run | Yrd Mat Sub Mat Fac Fac Turns Passed 5188 | 84 472 996 768 2015 853 Spaces Moved 2788 | 53 249 409 453 1161 463 Core 15 | 11 . 4 . . . Treads 1221 | 42 249 16 . 451 463 Legs 1552 | . . 389 453 710 . Wheels . | . . . . . . Hover . | . . . . . . Flight . | . . . . . . Fastest Speed 50 | 50 160 130 123 122 164 Average Speed 148 | 137 160 177 124 140 164 Slowest Speed 500 | 160 160 500 130 240 165 Overloaded Moves . | . . . . . . Propulsion Burnouts . | . . . . . . Robots Hopped . | . . . . . . Potential Cave-ins . | . . . . . . Cave-ins Triggered . | . . . . . . Exploration Rate (%) 26 | 5 35 30 47 31 12 Regions Visited 5 Branch Regions 1 Pre-discovered Areas . | . . . . . . Known Exits Taken 1 | . . . . 1 . Unknown Exits Taken 4 | 1 1 1 1 . . Scrap Searched . | . . . . . . Spaces Dug 4 | . . . 2 1 1 Terrain Destroyed 68 | . . . 25 8 35 Melee . | . . . . . . Projectile 39 | . . . 25 8 6 AOE 29 | . . . . . 29 Terrain Rammed . | . . . . . . Walls Destroyed . | . . . . . . Machines Disabled . | . . . . . . Actions | -11 -10 -10 -8 -7 -6 --------- Run | Yrd Mat Sub Mat Fac Fac Total 3412 | 61 288 596 587 1377 503 Wait 197 | . 2 128 47 20 . Move 2783 | 52 248 408 452 1160 463 Hop . | . . . . . . Pick Up 65 | 3 10 6 18 26 2 Fast Attach 19 | 6 4 2 3 4 . Attach 24 | . . 5 4 12 3 Detach 9 | . 2 3 2 2 . Swap 37 | . . 3 6 24 4 Drop 49 | . 4 2 16 27 . Fire 214 | . 18 39 38 92 27 Melee 10 | . . . . 10 . Ram . | . . . . . . Kick 1 | . . . 1 . . Crush 4 | . . . . . 4 Escape Stasis . | . . . . . . Rewire . | . . . . . . Trap . | . . . . . . Miscellaneous . | . . . . . . Route ------- -11/Scrapyard -10/Materials -10/Subcaves (discovered 2 exits: *Mat x2) -8/Materials -7/Factory (discovered 3 exits: *Fac x2 / [*Low]) -6/Factory (discovered 2 exits: Low x2) History --------- Turn | Location | Event 12 | -11/Scrapyard | Discovered new exit (range 15) 85 | -11/Scrapyard | Entered Materials 324 | -10/Materials | Build established: Mutant 398 | -10/Materials | Discovered new exit (range 6) 557 | -10/Materials | Entered Subcaves 558 | -10/Subcaves | Approached by a straggling Scientist 579 | -10/Subcaves | Ambushed by Subdwellers from Twisted Machinery 630 | -10/Subcaves | Core integrity fell below 50% 666 | -10/Subcaves | Lost 4 parts (3n1w) 860 | -10/Subcaves | A swath of the cavern ceiling suddenly collapsed 1004 | -10/Subcaves | Discovered new exit (range 11) 1149 | -10/Subcaves | Discovered new exit (range 7) 1240 | -10/Subcaves | Visited 4L-MR0's lab 1276 | -10/Subcaves | Found Cargo Legs 1277 | -10/Subcaves | Attached Cargo Legs, gained temporary slots: Utility x2 1307 | -10/Subcaves | Learned Materials machine intel 1553 | -10/Subcaves | Entered Materials 1553 | -8/Materials | Evolved 4 slots: Propulsion x2, Utility x2 1554 | -8/Materials | Loaded intel: 52 machine locations 2204 | -8/Materials | Build established: Scavenger-Mutant 2248 | -8/Materials | Discovered new exit (range 16) 2321 | -8/Materials | Entered Factory 2321 | -7/Factory | Evolved 2 slots: Propulsion x1, Utility x1 2522 | -7/Factory | Lost 3 parts (1n1u1w) 2524 | -7/Factory | Garrison activated, responded to threat 2652 | -7/Factory | Discovered new exit (range 3) 2871 | -7/Factory | Discovered new exit (range 3) 2981 | -7/Factory | Identified exit to Factory 3247 | -7/Factory | Build established: Scavenger-Skirmisher 3541 | -7/Factory | Discovered exit to Factory (range 15) 3568 | -7/Factory | Build established: Skirmisher 4336 | -7/Factory | Entered another Factory area 4336 | -6/Factory | Evolved 2 slots: Propulsion x1, Utility x1 4357 | -6/Factory | Build established: Mutant 4498 | -6/Factory | Identified exit to Lower Caves 4805 | -6/Factory | Spotted B-75 Beast 4811 | -6/Factory | Build established: Hacker-Mutant 5189 | -6/Factory | Self-destructed Last Messages --------------- 05082_ U-05 Engineer builds a Wall. 05088_ K-01 Serf collects debris. 05094_ K-01 Serf cleans the Subcomponent Replicator. 05100_ System corrupted: Matter fused (-6). 05100_ K-01 Serf cleans the Subcomponent Replicator. 05113_ ALERT: Potential suspicious activity detected, Programmers report to Factory Zone 7L. 05139_ O-16 Technician: "IFF HANDSHAKE FAILED. SECURING TERMINAL." 05147_ Mic. Nuclear Core destroyed. 05154_ Minigun destroyed. 05155_ ALERT: Hostiles spotted, dispatching reinforcements to Terminal F011. 05178_ System corrupted: Matter fused (-7). 05182_ >> Machine Analyzer network decryption results: 05182_ Scanalyzer x2 05184_ Slammed into U-05 Engineer. 05184_ Destroyed Structural Scanner. 05184_ U-05 Engineer system corrupted by crushing effect. 05185_ ALERT: Construction progress impeded, dispatching reinforcements to local area. Map ----- +----------------------------------------------------+ | ?????????????????????????????????????????????????? | | ?????????????????????????????????????????????????? | | ?????????????????????????????????????????????????? | | ?????????????????????????????????????????????????? | | ?????????????????????????????????????????????????? | | ?????????????????????????????????????????????????? | | ?????????????????????????????????????????????????? | | ?????????????????????????????????????????????????? | | ?????????????????????????????????????????????????? | | ?????????????????????????????????????????????????? | | ??????????????????????????????????????????????? "" | | ??????????????????????????????????????????????#""T | | ?????????????????????????????????????? ######"" | | ?????????????????????????????????????# | | ??????????????##?????????????????????# | | ?????????????? ???????????????????## | | ??????????????? ??????????????????+ | | ???????????????? ????????????#+#???# """ | | ????????????????? ???????????# #???# """"" | | ?????????????????? ??????????# #???# """"" | | ??????????????######g#######???# #???# | | ??????????????? u #???# #???# | | ??????????????? "" #???# #???# ^ | | ??????????????? ""S ##### ##### | | ??????????????# "" + | | ??????????????# @ ##### ##### | | ??????????????# !! #???# #???# | | ??????????????# !! #???# #???####### ##### | | ??????????????# #???# #?????????# #???? | | ??????????????# #???# #?????????# #???? | | ??????????????# """"""""" #???# #?????????# #???? | | ??????????????# #???# #?????????# #???? | | ??????????????? #???# #?????????# #???? | | ???????????????Y############???# #?????????# #???? | | ???????????????????????????????# #?????????# #???? | | ???????????????????????????????# #######"##" ##"## | | ???????????????????????????????#% | | ???????????????????????????????#######%#######"### | | ???????????????"?"?"?????????????????###?????????? | | ???????????????"?"?"????????????????"T"??????""??? | | ???????????????"?"?"?????????????????????????"F??? | | ???????????????"?"?"?????????????????????????""??? | | ???????????????"?"?"????????????????"""""""??""??? | | ???????????????"?"?"????????????????"""""""??????? | | ???????????????"?"?"????????????????"""""""??????? | | ???????????????"?"?"????????????????"""""""??????? | | ???????????????"?"?"?????????????????????????????? | | ?????????????????????????????????????????????????? | | ?????????????????????????????????????????????????? | | ?????????????????????????????????????????????????? | +----------------------------------------------------+ Best States ------------- Heat Dissipation 68 Energy Generation 16 Energy Capacity 290 Matter Stores 300 Matter Capacity 300 Sight Range 16 Robot Scan Range 15 Terrain Scan Density 10 Armor Coverage 450 Evasion (%) 55 Recoil Reduction 6 Offensive Hacking 10 Defensive Hacking 10 Item Schematics ----------------- None Robot Schematics ------------------ None Fabricated ------------ Nothing Repaired ---------- Nothing Alien Tech Used ----------------- None Achievements -------------- None Challenges ------------ None Game ------ Seed ThunderDisruptorPower Manual? 0 Play Time 00:41:27 Cumulative 44.0 hours Start 2025.05.18 @ 11:22:08 End 2025.05.18 @ 12:03:17 Sessions 1 Manual Loads 0 Difficulty Rogue Special Mode None Game No. 32 Rogue 32 Adventurer 0 Explorer 0 Win Type - Total 4 Types 2/0/1/0/1/0/0/0/0/0 Lore% 36 Gallery% 39 Achievement% 48 Wizard Run 0 Options --------- Layout 0 ASCII 0 Keyboard 1 Movement Vi Keybinds 0 Fullscreen 2 Font 18/SmallcapsGlow Map View 76x50 Zoom Use 0% Tactical HUD 1 Map Filters NONE Filters NONE Steam 1 RUN: fc8aa2be-9e26-4e38-bb26-dab3b2086409